bitfinex/quotes_BTCUSD_20230108
["timestamp","ask_amount","ask_price","bid_price","bid_amount"]
[1673218070249,1.33358549,16977.0,16976.0,0.695]
[1673218071588,0.18447998,16977.0,16976.0,0.695]
[1673218072323,0.18447998,16977.0,16975.0,1.678162]
[1673218072579,0.18447998,16977.0,16975.0,1.678182]
[1673218072837,0.18447998,16977.0,16975.0,2.11771149]
[1673218073299,0.17647998,16977.0,16975.0,2.11771149]
[1673218073541,0.19147998,16977.0,16976.0,0.7]
[1673218073914,0.19147998,16977.0,16976.0,1.2]
[1673218074824,0.17647998,16977.0,16976.0,1.2]
[1673218075009,0.17647998,16977.0,16976.0,0.7]
[1673218075010,0.18447998,16977.0,16976.0,0.7]
[1673218076159,0.44919996,16977.0,16976.0,0.7]
[1673218076405,1.33357405,16977.0,16976.0,0.7]
[1673218076624,0.18447998,16977.0,16976.0,0.7]
[1673218079593,0.18447998,16977.0,16975.0,1.678184]
[1673218079833,6e-05,16976.0,16975.0,2.11769005]
[1673218080076,6e-05,16976.0,16975.0,2.046126]
[1673218080349,6e-05,16976.0,16975.0,2.746126]
[1673218080867,6e-05,16976.0,16975.0,3.18562868]
[1673218081134,0.01506,16976.0,16975.0,3.18562868]
[1673218081369,0.01506,16976.0,16975.0,2.746126]
[1673218081651,0.01506,16976.0,16975.0,3.18560663]
[1673218084803,0.05292225,16976.0,16975.0,3.18560663]
[1673218088555,0.22940223,16976.0,16975.0,3.18560663]
[1673218089050,0.22940223,16976.0,16975.0,3.18558535]
[1673218089300,0.22929342,16976.0,16975.0,3.18558535]
[1673218090078,0.22929342,16976.0,16975.0,2.48558535]
[1673218090328,0.4940134,16976.0,16975.0,2.48558535]
[1673218090556,1.37836551,16976.0,16975.0,2.48558535]
[1673218091046,1.37836551,16976.0,16975.0,2.4855866]
[1673218091295,1.37836551,16976.0,16975.0,2.746126]
[1673218097217,1.37836551,16976.0,16975.0,2.046126]
[1673218098116,1.37836551,16976.0,16975.0,2.746126]
[1673218099208,1.37836551,16976.0,16975.0,3.18554997]
[1673218099451,1.37836551,16976.0,16975.0,2.746126]
[1673218100768,1.11364553,16976.0,16975.0,2.746126]
[1673218101506,1.37836551,16976.0,16975.0,2.746126]
[1673218102048,1.11364553,16976.0,16975.0,2.746126]
[1673218102603,1.37836551,16976.0,16975.0,2.746126]
[1673218102843,1.11364553,16976.0,16975.0,2.92236356]
[1673218104317,1.11364553,16976.0,16975.0,2.22236356]
[1673218105562,1.11364553,16976.0,16975.0,2.92236356]
[1673218107072,1.11364553,16976.0,16975.0,2.746126]
[1673218107328,1.11364553,16976.0,16975.0,2.92236356]
[1673218107827,1.11364553,16976.0,16975.0,2.746126]
[1673218108830,1.11364553,16976.0,16975.0,2.246126]
[1673218109015,1.37836551,16976.0,16975.0,2.246126]
[1673218111592,1.37836551,16976.0,16975.0,1.546126]
[1673218112344,1.37836551,16976.0,16975.0,2.246126]
[1673218114138,1.36341432,16976.0,16975.0,2.246126]
[1673218114394,1.37141432,16976.0,16975.0,2.246126]
[1673218114891,1.54805582,16976.0,16975.0,1.878184]
[1673218116361,1.54805582,16976.0,16975.0,2.246126]
[1673218116891,1.54805582,16976.0,16975.0,1.657043]
[1673218117113,1.54805582,16976.0,16975.0,1.289101]
[1673218117563,1.54805582,16976.0,16975.0,1.657043]
[1673218117815,1.98945941,16976.0,16975.0,1.657043]
[1673218118068,1.54850789,16976.0,16975.0,1.657043]
[1673218118577,2.08428807,16976.0,16975.0,1.2889818]
[1673218120086,1.72473943,16976.0,16975.0,1.2889818]
[1673218120348,2.08378761,16976.0,16975.0,1.2889818]
[1673218121589,1.73066613,16976.0,16975.0,0.7]
[1673218122106,2.08411458,16976.0,16975.0,0.7]
[1673218123848,1.73066613,16976.0,16975.0,0.7]
[1673218124630,2.17980923,16976.0,16975.0,0.7]
[1673218125074,1.73066613,16976.0,16975.0,0.7]
[1673218126077,2.0839832,16976.0,16975.0,0.7]
[1673218129869,2.33729583,16976.0,16975.0,0.7]
[1673218130117,2.0839832,16976.0,16975.0,0.7]
[1673218130852,1.73066613,16976.0,16975.0,0.7]
[1673218131070,2.17980923,16976.0,16975.0,0.7]
[1673218131457,2.17980923,16976.0,16974.0,0.59011406]
[1673218131678,0.44156509,16975.0,16974.0,0.59011406]
[1673218131915,1.3259172,16975.0,16974.0,0.59011406]
[1673218132161,1.3259172,16975.0,16974.0,0.589117]
[1673218132666,1.3259172,16975.0,16974.0,1.289117]
[1673218132928,1.3259172,16975.0,16974.0,1.657059]
[1673218133170,1.3259172,16975.0,16974.0,1.289117]
[1673218133718,1.3409172,16975.0,16974.0,1.289117]
[1673218134022,1.07597815,16975.0,16974.0,1.289117]
[1673218134223,0.19162604,16975.0,16974.0,1.657059]
[1673218134726,1.07606641,16975.0,16974.0,1.657059]
[1673218134980,0.19162604,16975.0,16974.0,1.657059]
[1673218135715,1.07606507,16975.0,16974.0,1.657059]
[1673218135965,0.19162604,16975.0,16974.0,1.657059]
[1673218136464,1.07606995,16975.0,16974.0,1.657059]
[1673218137482,1.07606995,16975.0,16974.0,3.9247041]
[1673218137483,0.19162604,16975.0,16974.0,3.9247041]
[1673218137728,0.015,16975.0,16974.0,3.6301741]
[1673218137981,0.015,16975.0,16974.0,4.10641166]
[1673218139157,0.015,16975.0,16974.0,4.14182835]
[1673218140671,0.015,16975.0,16974.0,3.84182835]
[1673218141613,0.015,16975.0,16974.0,4.40636868]
[1673218141870,0.01148,16975.0,16974.0,4.40636868]
[1673218142113,0.01148,16975.0,16974.0,4.14182835]
[1673218146736,0.01148,16975.0,16974.0,3.73638835]
[1673218147664,0.01148,16975.0,16974.0,4.43638835]
[1673218149408,0.01148,16975.0,16974.0,5.21783507]
[1673218149914,0.01148,16975.0,16974.0,4.70092868]
[1673218150176,0.01148,16975.0,16974.0,4.10641166]
[1673218151447,0.01148,16975.0,16974.0,3.80641166]
[1673218151907,0.01148,16975.0,16974.0,4.10641166]
[1673218152666,0.01148,16975.0,16974.0,4.37095199]
[1673218153135,0.01148,16975.0,16974.0,4.88772255]
[1673218153358,0.01148,16975.0,16974.0,4.37095199]
[1673218153574,0.01148,16975.0,16974.0,4.88768289]
[1673218153786,0.01148,16975.0,16974.0,4.37095199]
[1673218154583,0.01148,16975.0,16974.0,4.10641166]
[1673218156146,0.01148,16975.0,16974.0,4.40097166]
[1673218157895,0.01148,16975.0,16974.0,4.10641166]
[1673218158152,0.01148,16975.0,16974.0,4.40096166]
[1673218158902,0.01148,16975.0,16974.0,3.70096166]
[1673218159896,0.01148,16975.0,16974.0,4.40096166]
[1673218163719,0.01148,16975.0,16974.0,4.99490933]
[1673218163989,0.01148,16975.0,16974.0,5.98661568]
[1673218164338,0.01148,16975.0,16974.0,6.60121623]
[1673218164339,0.0113915,16975.0,16974.0,6.60121623]
[1673218164576,0.0113915,16975.0,16974.0,6.3366759]
[1673218166983,0.0113915,16975.0,16974.0,5.9841934]
[1673218167249,0.0113915,16975.0,16974.0,6.33695983]
[1673218167752,0.03667599,16975.0,16974.0,6.33695983]
[1673218168020,0.03667599,16975.0,16974.0,6.16325983]
[1673218168719,0.0113915,16975.0,16974.0,6.12784314]
[1673218170142,0.0113915,16975.0,16974.0,5.83329314]
[1673218170391,0.0113915,16975.0,16974.0,6.12782314]
[1673218171842,0.0113915,16975.0,16974.0,6.16323983]
[1673218172992,0.03667599,16975.0,16974.0,6.16323983]
[1673218173216,0.03667599,16975.0,16974.0,5.46323983]
[1673218174753,0.03667599,16975.0,16974.0,5.8104734]
[1673218175235,0.03667599,16975.0,16974.0,6.16346029]
[1673218175737,0.0113915,16975.0,16974.0,6.16346029]
[1673218176200,0.0113915,16975.0,16974.0,5.8104734]
[1673218176955,0.03667599,16975.0,16974.0,5.8104734]
[1673218178020,0.0113915,16975.0,16974.0,5.8104734]
[1673218178977,0.03667599,16975.0,16974.0,5.8104734]
[1673218179498,0.03667599,16975.0,16974.0,5.77505671]
[1673218179784,0.0113915,16975.0,16974.0,5.77505671]
[1673218180788,0.0113915,16975.0,16974.0,5.07505671]
[1673218180789,0.03667599,16975.0,16974.0,5.07505671]
[1673218181248,0.03667599,16975.0,16974.0,5.77505671]
[1673218181535,0.03667599,16975.0,16974.0,5.8104734]
[1673218184505,0.03667599,16975.0,16974.0,6.16355396]
[1673218185078,0.03667599,16975.0,16974.0,6.16356396]
[1673218185327,0.03667599,16975.0,16974.0,5.8104834]
[1673218186304,0.03661145,16975.0,16974.0,6.1635851]
[1673218186808,0.01132696,16975.0,16974.0,6.1635851]
[1673218187297,0.01132696,16975.0,16974.0,5.8104834]
[1673218189889,0.01132696,16975.0,16974.0,5.18397499]
[1673218190121,0.01132696,16975.0,16974.0,5.00740628]
[1673218191365,0.01132696,16975.0,16974.0,4.55826318]
[1673218191621,0.01132696,16975.0,16974.0,4.04275879]
[1673218191865,0.01132696,16975.0,16974.0,4.55946715]
[1673218192129,0.01132696,16975.0,16974.0,4.04275879]
[1673218192378,0.01132696,16975.0,16974.0,5.30861754]
[1673218193344,0.01132696,16975.0,16974.0,3.77788072]
[1673218194091,0.01132696,16975.0,16974.0,4.22702382]
[1673218194312,0.01132696,16975.0,16974.0,4.79190189]
[1673218194565,0.01132696,16975.0,16974.0,5.30859514]
[1673218194819,0.01132696,16975.0,16974.0,5.60314514]
[1673218195799,0.03661557,16975.0,16974.0,5.60314514]
[1673218196563,0.03661557,16975.0,16974.0,5.60304565]
[1673218196823,0.03661557,16975.0,16974.0,5.95621641]
[1673218197725,0.03661557,16975.0,16974.0,5.77961436]
[1673218198718,0.03661557,16975.0,16974.0,6.22051491]
[1673218199399,0.03661557,16975.0,16974.0,5.77961436]
[1673218200461,0.03661557,16975.0,16974.0,6.22051491]
[1673218200705,0.03661557,16975.0,16974.0,5.95563684]
[1673218200971,0.03661557,16975.0,16974.0,6.22053469]
[1673218201221,0.03661557,16975.0,16974.0,5.95563684]
[1673218201780,0.03141157,16975.0,16974.0,5.95563684]
[1673218202107,0.03141157,16975.0,16974.0,6.22053815]
[1673218202351,0.03141157,16975.0,16974.0,5.95562684]
[1673218202596,0.03141157,16975.0,16974.0,6.22052683]
[1673218202846,0.03141157,16975.0,16974.0,5.95562684]
[1673218204363,0.03141157,16975.0,16974.0,6.12872684]
[1673218208560,0.03141157,16975.0,16974.0,5.77555608]
[1673218209716,0.03141157,16975.0,16974.0,6.12874002]
[1673218210194,0.03141157,16975.0,16974.0,5.77555608]
[1673218211445,0.03141157,16975.0,16974.0,5.81097277]
[1673218214861,0.03141157,16975.0,16974.0,5.11097277]
[1673218215905,0.03141157,16975.0,16974.0,5.81097277]
[1673218217329,0.03141157,16975.0,16974.0,6.1642155]
[1673218218291,0.03141157,16975.0,16974.0,5.81097277]
[1673218219115,0.03141157,16975.0,16974.0,5.81096277]
[1673218219872,0.00612296,16975.0,16974.0,5.81096277]
[1673218220167,0.00612296,16975.0,16974.0,5.51643277]
[1673218220474,0.00612296,16975.0,16974.0,5.77555608]
[1673218221529,0.00612296,16975.0,16974.0,5.37007222]
[1673218222059,0.03133739,16975.0,16974.0,5.37007222]
[1673218224860,0.00612296,16975.0,16974.0,5.37007222]
[1673218225994,0.00606255,16975.0,16974.0,5.51706008]
[1673218226264,0.00606255,16975.0,16974.0,5.83487268]
[1673218228050,0.00606255,16975.0,16974.0,5.48164339]
[1673218228320,0.00606255,16975.0,16974.0,5.83486835]
[1673218230871,0.00606255,16975.0,16974.0,6.12940835]
[1673218231095,0.00606255,16975.0,16974.0,6.2898143]
[1673218231335,0.00606255,16975.0,16974.0,5.77618339]
[1673218231597,0.00606255,16975.0,16974.0,6.77191659]
[1673218231857,0.03128178,16975.0,16974.0,6.77191659]
[1673218232107,0.03128178,16975.0,16974.0,7.30122064]
[1673218232391,0.03128178,16975.0,16974.0,6.77191659]
[1673218232641,0.00015,16978.0,16975.0,0.50894663]
[1673218232886,0.00015,16978.0,16977.0,0.5]
[1673218233128,0.00015,16978.0,16977.0,3.3786811]
[1673218233381,0.44156509,16979.0,16977.0,3.55526283]
[1673218233631,0.17662604,16979.0,16978.0,0.367942]
[1673218233892,1.06081437,16979.0,16978.0,2.245936]
[1673218234134,1.50237971,16979.0,16978.0,1.877994]
[1673218235368,1.9437833,16979.0,16978.0,1.877994]
[1673218235866,1.50237971,16979.0,16978.0,1.877994]
[1673218236622,1.63837971,16979.0,16978.0,1.878994]
[1673218237357,1.81484425,16979.0,16978.0,1.878994]
[1673218237852,1.63853792,16979.0,16978.0,1.878994]
[1673218239818,1.46201336,16979.0,16978.0,1.878994]
[1673218240300,1.1969161,16979.0,16978.0,1.878994]
[1673218241299,1.19691667,16979.0,16978.0,1.878994]
[1673218242336,0.31272777,16979.0,16978.0,1.878994]
[1673218242595,1.46201616,16979.0,16978.0,1.878994]
[1673218243309,1.1969189,16979.0,16978.0,1.878994]
[1673218244550,1.1969189,16979.0,16978.0,2.246936]
[1673218245574,1.1969189,16979.0,16978.0,1.878994]
[1673218245826,1.46201616,16979.0,16978.0,1.878994]
[1673218251779,1.46201616,16979.0,16978.0,1.178994]
[1673218252295,1.46201616,16979.0,16978.0,0.978994]
[1673218252784,1.46201616,16979.0,16978.0,1.678994]
[1673218258668,1.4619447,16979.0,16978.0,0.978994]
[1673218259737,1.4619447,16979.0,16978.0,1.678994]
[1673218265765,1.72696466,16979.0,16978.0,1.678994]
[1673218266017,1.4619447,16979.0,16978.0,1.678994]
[1673218267898,1.4619447,16979.0,16978.0,1.67891088]
[1673218268415,1.72700179,16979.0,16978.0,1.67891088]
[1673218269211,1.90352635,16979.0,16978.0,1.67891088]
[1673218269465,2.08023581,16979.0,16978.0,1.67891088]
[1673218270468,2.5216394,16979.0,16978.0,1.67891088]
[1673218270722,2.87936089,16979.0,16978.0,1.67891088]
[1673218271165,2.70307608,16979.0,16978.0,1.67891088]
[1673218272706,3.2370599,16979.0,16978.0,1.67891088]
[1673218278627,3.2370599,16979.0,16978.0,0.97891088]
[1673218279553,3.2370599,16979.0,16978.0,1.67891088]
[1673218281061,2.87936089,16979.0,16978.0,1.67891088]
[1673218281564,3.14442263,16979.0,16978.0,1.67891088]
[1673218281786,2.70301904,16979.0,16978.0,1.67891088]
[1673218285637,2.70301904,16979.0,16978.0,0.97891088]
[1673218286659,2.70301904,16979.0,16978.0,1.67891088]
[1673218288316,3.14442263,16979.0,16978.0,1.67891088]
[1673218288846,2.87936089,16979.0,16978.0,1.67891088]
[1673218289179,3.14442959,16979.0,16978.0,1.67891088]
[1673218289422,2.87936089,16979.0,16978.0,1.67891088]
[1673218290451,2.70302571,16979.0,16978.0,1.67891088]
[1673218290674,3.1444293,16979.0,16978.0,1.67891088]
[1673218291796,2.70302571,16979.0,16978.0,1.67891088]
[1673218292529,3.1444293,16979.0,16978.0,1.67891088]
[1673218292773,2.87936089,16979.0,16978.0,0.97891088]
[1673218293762,2.87936089,16979.0,16978.0,1.67891088]
[1673218294262,3.23572555,16979.0,16978.0,1.67891088]
[1673218296483,2.87936089,16979.0,16978.0,1.67891088]
[1673218297246,3.14442513,16979.0,16978.0,1.67891088]
[1673218298240,2.87936089,16979.0,16978.0,1.67891088]
[1673218298714,3.14443967,16979.0,16978.0,1.67891088]
[1673218299743,3.14443967,16979.0,16978.0,0.97891088]
[1673218300268,2.87936089,16979.0,16978.0,0.97891088]
[1673218300845,2.87936089,16979.0,16978.0,1.67891088]
[1673218301053,3.23563184,16979.0,16978.0,1.67891088]
[1673218302585,2.87936089,16979.0,16978.0,1.67891088]
[1673218303289,3.14445299,16979.0,16978.0,1.67891088]
[1673218303545,3.14445299,16979.0,16978.0,0.001]
[1673218303546,3.33860239,16979.0,16978.0,0.001]
[1673218303807,3.78750039,16979.0,16978.0,0.001]
[1673218306324,3.25781609,16979.0,16978.0,0.001]
[1673218309047,3.78750039,16979.0,16978.0,0.001]
[1673218314087,3.25781609,16979.0,16978.0,0.001]
[1673218314342,3.43151609,16979.0,16978.0,0.001]
[1673218316953,3.87298095,16979.0,16978.0,0.001]
[1673218319218,3.43151609,16979.0,16978.0,0.001]
[1673218321787,3.87296612,16979.0,16978.0,0.001]
[1673218322522,3.42406812,16979.0,16978.0,0.001]
[1673218323767,3.25036812,16979.0,16978.0,0.001]
[1673218324031,2.88242612,16979.0,16978.0,0.001]
[1673218324282,3.2355739,16979.0,16978.0,0.001]
[1673218325465,2.88242612,16979.0,16978.0,0.001]
[1673218325705,3.23559058,16979.0,16978.0,0.001]
[1673218326175,3.23559058,16979.0,16978.0,0.701]
[1673218329687,3.23559058,16979.0,16978.0,1.289997]
[1673218333718,2.88242612,16979.0,16978.0,1.289997]
[1673218333963,2.9081987,16979.0,16978.0,1.289997]
[1673218334517,3.26144419,16979.0,16978.0,1.289997]
[1673218335511,2.19693035,16979.0,16978.0,1.289997]
[1673218335981,2.19693035,16979.0,16978.0,0.701]
[1673218336233,1.84368486,16979.0,16978.0,0.701]
[1673218337239,2.29258286,16979.0,16978.0,0.701]
[1673218338089,1.81791228,16979.0,16978.0,0.701]
[1673218341877,1.84368486,16979.0,16978.0,0.701]
[1673218342885,1.81791228,16979.0,16978.0,0.701]
[1673218350049,1.81791228,16979.0,16978.0,0.001]
[1673218351827,1.81791228,16979.0,16978.0,1.289997]
[1673218354279,1.82536025,16979.0,16978.0,0.701]
[1673218354589,1.82536025,16979.0,16978.0,0.70092597]
[1673218354845,1.37646225,16979.0,16978.0,0.70092597]
[1673218355342,1.82536025,16979.0,16978.0,0.70092597]
[1673218355803,1.37646225,16979.0,16978.0,0.70092597]
[1673218356304,1.90614655,16979.0,16978.0,0.70092597]
[1673218357009,1.37646225,16979.0,16978.0,0.70092597]
[1673218357486,1.89614655,16979.0,16978.0,0.70092597]
[1673218357709,1.36646225,16979.0,16978.0,0.70092597]
[1673218360223,1.89614655,16979.0,16978.0,0.70092597]
[1673218360704,1.89614655,16979.0,16978.0,0.00092597]
[1673218360976,1.36646225,16979.0,16978.0,0.00092597]
[1673218361730,1.81536025,16979.0,16978.0,0.00092597]
[1673218361946,2.34504455,16979.0,16978.0,0.00092597]
[1673218364524,2.71298655,16979.0,16978.0,0.00092597]
[1673218365161,2.34504455,16979.0,16978.0,0.00092597]
[1673218365967,2.71298655,16979.0,16978.0,0.00092597]
[1673218366464,2.34504455,16979.0,16978.0,0.00092597]
[1673218366960,2.71298655,16979.0,16978.0,0.00092597]
[1673218368657,2.34504455,16979.0,16978.0,0.00092597]
[1673218368865,1.89614655,16979.0,16978.0,0.00092597]
[1673218369369,2.34504455,16979.0,16978.0,0.00092597]
[1673218369588,1.89614655,16979.0,16978.0,0.00092597]
[1673218370876,2.34504455,16979.0,16978.0,0.00092597]
[1673218373386,1.89614655,16979.0,16978.0,0.00092597]
[1673218373868,1.92080542,16979.0,16978.0,0.00092597]
[1673218374597,1.39112112,16979.0,16978.0,0.00092597]
[1673218378589,1.39112112,16979.0,16978.0,0.00082796]
[1673218381334,1.39112112,16979.0,16978.0,0.70082796]
[1673218387034,1.36646225,16979.0,16978.0,0.70082796]
[1673218387476,1.36646225,16979.0,16978.0,0.00082796]
[1673218388482,1.36646225,16979.0,16978.0,0.70082796]
[1673218392478,2.34504455,16979.0,16978.0,0.00082796]
[1673218392696,2.26408855,16979.0,16978.0,0.00082796]
[1673218393441,1.89614655,16979.0,16978.0,0.00082796]
[1673218395090,1.36646225,16979.0,16978.0,0.00082796]
[1673218395921,1.89614655,16979.0,16978.0,0.00082796]
[1673218402102,1.89614655,16979.0,16978.0,0.00074905]
[1673218402355,1.89614655,16979.0,16978.0,0.00040643]
[1673218405209,1.36646225,16979.0,16978.0,0.00040643]
[1673218406825,1.89614655,16979.0,16978.0,0.00040643]
[1673218407080,1.36646225,16979.0,16978.0,0.00040643]
[1673218408074,1.89614655,16979.0,16978.0,0.00040643]
[1673218420365,1.36646225,16979.0,16978.0,0.00040643]
[1673218422551,1.36646225,16979.0,16978.0,0.58940343]
[1673218426445,1.36646225,16979.0,16978.0,1.28940343]
[1673218431357,1.36646225,16979.0,16978.0,0.70040643]
[1673218431587,2.34504455,16979.0,16978.0,0.00030172]
[1673218431841,1.89614655,16979.0,16978.0,0.00030172]
[1673218436274,1.36646225,16979.0,16978.0,0.00030172]
[1673218440033,1.36646225,16979.0,16978.0,0.70030172]
[1673218446911,1.80838664,16979.0,16978.0,0.70030172]
[1673218447139,1.36646225,16979.0,16978.0,0.70030172]
[1673218448173,1.36646225,16979.0,16978.0,1.28929872]
[1673218448927,1.80837486,16979.0,16978.0,1.28929872]
[1673218449687,1.80837582,16979.0,16978.0,1.28929872]
[1673218449940,1.36646225,16979.0,16978.0,1.28929872]
[1673218450194,1.80836743,16979.0,16978.0,1.28929872]
[1673218451434,1.36646225,16979.0,16978.0,1.28929872]
[1673218451688,1.80836614,16979.0,16978.0,0.58929872]
[1673218451939,1.36646225,16979.0,16978.0,0.58929872]
[1673218452681,1.8083662,16979.0,16978.0,1.28929872]
[1673218458143,2.16184829,16979.0,16978.0,1.28929872]
[1673218458585,2.16185101,16979.0,16978.0,1.28929872]
[1673218458788,1.8083662,16979.0,16978.0,0.58929872]
[1673218459027,2.16185154,16979.0,16978.0,0.58929872]
[1673218459290,2.16185154,16979.0,16978.0,1.26115954]
[1673218459539,1.62877874,16979.0,16978.0,3.19143654]
[1673218459793,1.62877874,16979.0,16978.0,3.55937854]
[1673218460049,1.45198596,16979.0,16978.0,3.55937854]
[1673218460334,1.45198596,16979.0,16978.0,4.14807382]
[1673218460335,1.32598596,16979.0,16978.0,4.14807382]
[1673218460560,1.32598596,16979.0,16978.0,4.5621915]
[1673218460809,0.17669256,16979.0,16978.0,4.5621915]
[1673218461612,0.19069256,16979.0,16978.0,4.5961915]
[1673218461801,0.17669256,16979.0,16978.0,4.5621915]
[1673218462338,0.19069256,16979.0,16978.0,4.5961915]
[1673218462870,0.014,16979.0,16978.0,4.5961915]
[1673218463345,0.014,16979.0,16978.0,4.8961915]
[1673218463844,0.014,16979.0,16978.0,5.07272262]
[1673218464106,0.014,16979.0,16978.0,4.8961915]
[1673218464396,0.014,16979.0,16978.0,4.93160819]
[1673218464643,0.114,16979.0,16978.0,4.8961915]
[1673218464898,0.11392599,16979.0,16978.0,5.07272262]
[1673218465453,0.11392599,16979.0,16978.0,4.8961915]
[1673218465724,0.11392599,16979.0,16978.0,5.07272262]
[1673218466262,0.11392599,16979.0,16978.0,4.8961915]
[1673218466505,0.11392599,16979.0,16978.0,6.28625915]
[1673218466785,0.11392599,16979.0,16978.0,7.9434641]
[1673218467047,0.11392599,16979.0,16978.0,7.67566409]
[1673218467294,0.11392599,16979.0,16978.0,7.85196368]
[1673218467550,0.11392599,16979.0,16978.0,7.67566409]
[1673218468074,0.11392599,16979.0,16978.0,7.85224582]
[1673218468289,0.11392599,16979.0,16978.0,7.67502661]
[1673218468553,0.11392599,16979.0,16978.0,7.7104433]
[1673218469036,0.11392599,16979.0,16978.0,7.4159633]
[1673218469324,0.05227806,16979.0,16978.0,8.85844169]
[1673218469555,0.00535778,16981.0,16979.0,1.08109277]
[1673218469808,0.00535778,16981.0,16980.0,5.46620988]
[1673218470070,0.00535778,16981.0,16980.0,5.59878409]
[1673218470845,0.00535778,16981.0,16980.0,6.29878409]
[1673218471900,0.01035778,16981.0,16980.0,6.47490988]
[1673218472096,0.00535778,16981.0,16980.0,7.10790241]
[1673218472350,0.00935778,16981.0,16980.0,7.06177662]
[1673218474117,0.00935778,16981.0,16980.0,7.35619662]
[1673218476938,0.00935778,16981.0,16980.0,6.36177662]
[1673218477112,0.00935778,16981.0,16980.0,6.65619662]
[1673218477872,0.00935778,16981.0,16980.0,7.35619662]
[1673218478125,0.00935778,16981.0,16980.0,6.31389662]
[1673218483837,0.00935778,16981.0,16980.0,5.61389662]
[1673218484327,0.00935778,16981.0,16980.0,6.65699662]
[1673218484909,0.00935778,16981.0,16980.0,7.35699662]
[1673218485948,0.10935778,16981.0,16980.0,7.35699662]
[1673218488706,0.10935778,16981.0,16980.0,6.48779662]
[1673218488963,0.10935778,16981.0,16980.0,6.31439662]
[1673218494118,0.13255461,16981.0,16980.0,6.31439662]
[1673218494859,0.13255461,16981.0,16980.0,6.49052241]
[1673218495131,0.10923927,16981.0,16980.0,6.49052241]
[1673218495388,0.10923927,16981.0,16980.0,6.31439662]
[1673218496153,0.10923927,16981.0,16980.0,6.75471109]
[1673218497442,0.10923927,16981.0,16980.0,7.19091601]
[1673218498039,0.10923927,16981.0,16980.0,7.3670418]
[1673218498775,0.10923927,16981.0,16980.0,7.19077652]
[1673218499050,0.13255461,16981.0,16980.0,7.19077652]
[1673218499541,0.13255461,16981.0,16980.0,6.49077652]
[1673218500300,0.13255461,16981.0,16980.0,6.6670418]
[1673218500543,0.13255461,16981.0,16980.0,7.3670418]
[1673218501480,0.13255461,16981.0,16980.0,7.3618478]
[1673218502229,0.13255461,16981.0,16980.0,7.53911345]
[1673218502720,0.13255461,16981.0,16980.0,6.83911345]
[1673218503763,0.13255461,16981.0,16980.0,7.43911345]
[1673218504009,0.13255461,16981.0,16980.0,6.91316187]
[1673218504253,0.13255461,16981.0,16980.0,6.31316187]
[1673218504766,0.13255461,16981.0,16980.0,6.31292409]
[1673218505678,0.13255461,16981.0,16980.0,7.01292409]
[1673218506210,0.13255461,16981.0,16980.0,6.57146976]
[1673218506514,0.13255461,16981.0,16980.0,7.17146976]
[1673218506969,0.13255461,16981.0,16980.0,6.57146976]
[1673218507299,0.13255461,16981.0,16980.0,7.01248165]
[1673218508144,0.13255461,16981.0,16980.0,6.57146976]
[1673218509137,0.13255461,16981.0,16980.0,6.27704976]
[1673218509361,0.13255461,16981.0,16980.0,6.57146976]
[1673218510118,0.13255461,16981.0,16980.0,6.60688645]
[1673218512992,0.10923927,16981.0,16980.0,6.60688645]
[1673218513831,0.10923927,16981.0,16980.0,6.50688645]
[1673218514810,0.10923927,16981.0,16980.0,7.20688645]
[1673218515051,0.10923927,16981.0,16980.0,8.34807064]
[1673218515311,0.00630887,16982.0,16981.0,1.35207303]
[1673218515530,0.00630887,16982.0,16981.0,5.88310953]
[1673218515801,0.00630887,16982.0,16981.0,6.58310953]
[1673218516275,0.00630887,16982.0,16981.0,6.74192618]
[1673218516751,0.00630887,16982.0,16981.0,6.77734287]
[1673218516999,0.00630887,16982.0,16981.0,6.78134287]
[1673218517774,0.00630887,16982.0,16981.0,7.12814287]
[1673218518291,0.00630887,16982.0,16981.0,8.25889657]
[1673218521317,0.00630887,16982.0,16981.0,8.45889657]
[1673218522599,0.00630887,16982.0,16981.0,8.45489657]
[1673218523374,0.00630887,16982.0,16981.0,9.45489657]
[1673218524129,0.01030887,16982.0,16981.0,9.88525657]
[1673218526352,0.01030887,16982.0,16981.0,9.88524657]
[1673218528210,0.01030887,16982.0,16981.0,9.68524657]
[1673218528466,0.01030887,16982.0,16981.0,8.98524657]
[1673218528892,0.01030887,16982.0,16981.0,8.81154657]
[1673218529428,0.01030887,16982.0,16981.0,9.01154657]
[1673218529672,0.01030887,16982.0,16981.0,9.71154657]
[1673218534758,0.01030887,16982.0,16981.0,8.71154657]
[1673218534974,0.01030887,16982.0,16981.0,8.18169646]
[1673218535218,0.00020886,16982.0,16981.0,8.71154657]
[1673218535469,0.00020886,16982.0,16981.0,6.88079287]
[1673218535966,0.00020886,16982.0,16981.0,7.48101846]
[1673218536220,0.00020886,16982.0,16981.0,8.01086857]
[1673218536474,0.00020886,16982.0,16981.0,9.71086857]
[1673218536718,0.00020886,16982.0,16981.0,8.71086857]
[1673218536970,0.00020886,16982.0,16981.0,9.71087857]
[1673218537470,0.00020886,16982.0,16981.0,8.71087857]
[1673218537977,0.00020886,16982.0,16981.0,9.71087857]
[1673218539025,0.00020886,16982.0,16981.0,9.67546188]
[1673218539522,0.00020886,16982.0,16981.0,9.71087857]
[1673218540290,0.00020886,16982.0,16981.0,9.71078546]
[1673218541314,0.00020886,16982.0,16981.0,9.67536877]
[1673218541791,0.00020886,16982.0,16981.0,9.71078546]
[1673218542573,0.00020886,16982.0,16981.0,9.01078546]
[1673218543075,0.00020886,16982.0,16981.0,7.48093535]
[1673218543334,0.00020886,16982.0,16981.0,6.88070976]
[1673218543585,0.00020886,16982.0,16981.0,7.58070976]
[1673218544442,0.00020886,16982.0,16981.0,8.71120989]
[1673218544688,0.00020886,16982.0,16981.0,9.18135978]
[1673218544932,0.00020886,16982.0,16981.0,9.71120989]
[1673218549514,0.00020886,16982.0,16981.0,9.01120989]
[1673218550522,0.00020886,16982.0,16981.0,9.71120989]
[1673218550769,0.00120886,16982.0,16981.0,9.71120989]
[1673218551025,0.00020886,16982.0,16981.0,9.71120989]
[1673218552046,0.00020886,16982.0,16981.0,8.3757932]
[1673218552568,0.00020886,16982.0,16981.0,8.41120989]
[1673218552886,0.00020886,16982.0,16981.0,7.28070976]
[1673218553566,0.00020886,16982.0,16981.0,7.58070976]
[1673218553838,0.00020886,16982.0,16981.0,8.711932]
[1673218554562,0.00020886,16982.0,16981.0,8.18208189]
[1673218554818,0.00020886,16982.0,16981.0,8.182085]
[1673218555036,0.00020886,16982.0,16981.0,8.71193511]
[1673218555325,4.24e-06,16982.0,16981.0,8.71193511]
[1673218558353,4.24e-06,16982.0,16981.0,9.71193511]
[1673218558826,4.24e-06,16982.0,16981.0,9.182085]
[1673218559874,4.24e-06,16982.0,16981.0,9.96356966]
[1673218560827,0.00306717,16983.0,16982.0,5.576e-05]